Workbook

Sheet TOC
B2: # | C2: type
B3: 1 | C3: Reserving Methods - FS (Disposal Rate Method)
B4: 2 | C4: Reserving Methods - COS (Case O/S Method #1)
B5: 3 | C5: Reserving Methods - PBS (Paid Berq-Sherm)
B6: 4 | C6: Calculate emergence in a future period

Sheet 1
A1: Reading: | C1: Friedland 10 (Frequency-Severity Methods) | N1: | | O1: Step 1a | P1: calculate CPC and IPC | S1: (you will be given 1 of them and have to calculate the other) | AB1: |
A2: Model: | C2: 2019.Fall #20 | N2: | | AB2: |
A3: Problem Type: | C3: Reserving Methods - FS (Disposal Rate Method) | N3: | | P3: given | Q3: Cumulative Paid Counts (CPC) | W3: Incremental Paid Counts (IPC) | AB3: |
N4: | | P4: AY | Q4: 12 | R4: 24 | S4: 36 | T4: 48 | V4: AY | W4: 12 | X4: 24 | Y4: 36 | Z4: 48 | AB4: |
A5: Find | C5: Use the frequency-severity disposal rate method to estimate | I5: unpaid | J5: claims for AY 2025 | N5: | | P5: =C14 -> 2022 | Q5: =D14 -> 1590 | R5: =E14 -> 1635 | S5: =F14 -> 1655 | T5: =G14 -> 1671 | V5: =C14 -> 2022 | W5: =Q5 -> 1590 | X5: =R5-Q5 -> 45 | Y5: =S5-R5 -> 20 | Z5: =T5-S5 -> 16 | AB5: |
C6: Random | N6: | | P6: =P5+1 -> 2023 | Q6: =D15 -> 1606 | R6: =E15 -> 1792 | S6: =F15 -> 1840 | V6: =V5+1 -> 2023 | W6: =Q6 -> 1606 | X6: =R6-Q6 -> 186 | Y6: =S6-R6 -> 48 | AB6: |
N7: | | P7: =P6+1 -> 2024 | Q7: =D16 -> 1605 | R7: =E16 -> 1700 | V7: =V6+1 -> 2024 | W7: =Q7 -> 1605 | X7: =R7-Q7 -> 95 | AB7: |
A8: Given | C8: A court ruling on Dec 31, 2025 will increase future claims payments by | J8: 0 | N8: | | P8: =P7+1 -> 2025 | Q8: =D17 -> 1604 | V8: =V7+1 -> 2025 | W8: =Q8 -> 1604 | AB8: |
C9: All claims are closed by 48 months | N9: | | AB9: |
C10: Severity trend: | E10: 0.03 | N10: | | O10: Step 1b | P10: calculate CPL and IPL | S10: (you will be given 1 of them and have to calculate the other) | AB10: |
N11: | | AB11: |
D12: Cumulative Paid Counts (CPC) | H12: Ultimate | N12: | | P12: given | Q12: Cumulative Paid Loss ($000s) (CPL) | W12: Incremental Paid Loss ($000s) (IPL) | AB12: |
C13: AY | D13: 12 | E13: 24 | F13: 36 | G13: 48 | H13: Counts | N13: | | P13: AY | Q13: 12 | R13: 24 | S13: 36 | T13: 48 | V13: AY | W13: 12 | X13: 24 | Y13: 36 | Z13: 48 | AB13: |
C14: 2022 | D14: 1590 | E14: 1635 | F14: 1655 | G14: 1671 | H14: 1671 | N14: | | P14: =C14 -> 2022 | Q14: =D21 -> 7001 | R14: =E21 -> 8051 | S14: =F21 -> 8212 | T14: =G21 -> 8212 | V14: =C14 -> 2022 | W14: =Q14 -> 7001 | X14: =R14-Q14 -> 1050 | Y14: =S14-R14 -> 161 | Z14: =T14-S14 -> 0 | AB14: |
C15: =C14+1 -> 2023 | D15: 1606 | E15: 1792 | F15: 1840 | H15: 1951 | N15: | | P15: =P14+1 -> 2023 | Q15: =D22 -> 6998 | R15: =E22 -> 8164 | S15: =F22 -> 8343 | V15: =V14+1 -> 2023 | W15: =Q15 -> 6998 | X15: =R15-Q15 -> 1166 | Y15: =S15-R15 -> 179 | AB15: |
C16: =C15+1 -> 2024 | D16: 1605 | E16: 1700 | H16: 1863 | N16: | | P16: =P15+1 -> 2024 | Q16: =D23 -> 8008 | R16: =E23 -> 9240 | V16: =V15+1 -> 2024 | W16: =Q16 -> 8008 | X16: =R16-Q16 -> 1232 | AB16: |
C17: =C16+1 -> 2025 | D17: 1604 | H17: 1860 | N17: | | P17: =P16+1 -> 2025 | Q17: =D24 -> 6480 | V17: =V16+1 -> 2025 | W17: =Q17 -> 6480 | AB17: |
N18: | | AB18: |
D19: Cumulative Paid Loss ($000s) (CPL) | N19: | | O19: Step 2a | P19: calculate CDR as: | R19: CPC / UC | S19: (UC = Ultimate Counts) | AB19: |
C20: AY | D20: 12 | E20: 24 | F20: 36 | G20: 48 | N20: | | AB20: |
C21: 2022 | D21: 7001 | E21: 8051 | F21: 8212 | G21: 8212 | N21: | | Q21: Claims DIsposal Rate (CDR) | AB21: |
C22: =C21+1 -> 2023 | D22: 6998 | E22: 8164 | F22: 8343 | N22: | | P22: AY | Q22: 12 | R22: 24 | S22: 36 | T22: 48 | AB22: |
C23: =C22+1 -> 2024 | D23: 8008 | E23: 9240 | N23: | | P23: =C14 -> 2022 | Q23: =ROUND(Q5/$H14,3) -> 0.952 | R23: =ROUND(R5/$H14,3) -> 0.978 | S23: =ROUND(S5/$H14,3) -> 0.99 | T23: =ROUND(T5/$H14,3) -> 1 | AB23: |
C24: =C23+1 -> 2025 | D24: 6480 | N24: | | P24: =P23+1 -> 2023 | Q24: =ROUND(Q6/$H15,3) -> 0.823 | R24: =ROUND(R6/$H15,3) -> 0.919 | S24: =ROUND(S6/$H15,3) -> 0.943 | AB24: |
N25: | | P25: =P24+1 -> 2024 | Q25: =ROUND(Q7/$H16,3) -> 0.862 | R25: =ROUND(R7/$H16,3) -> 0.913 | AB25: |
N26: | | P26: =P25+1 -> 2025 | Q26: =ROUND(Q8/$H17,3) -> 0.862 | AB26: |
N27: | | P27: select | Q27: =ROUND(AVERAGE(Q23:Q26),3) -> 0.875 | R27: =ROUND(AVERAGE(R23:R26),3) -> 0.937 | S27: =ROUND(AVERAGE(S23:S26),3) -> 0.967 | T27: =ROUND(AVERAGE(T23:T26),3) -> 1 | U27: <-- default selection = all period average | AB27: |
N28: | | AB28: |
N29: | | O29: Step 2b | P29: project IPC | R29: (project the Incremental Paid Counts to the lower right portion of the IPC triangle) | AB29: |
N30: | | AB30: |
N31: | | Q31: Incremental Paid Counts (IPC) | V31: This is the part of the calculation where it's easy to make a | AB31: |
N32: | | P32: AY | Q32: 12 | R32: 24 | S32: 36 | T32: 48 | V32: mistake. | AB32: |
N33: | | P33: =C14 -> 2022 | AB33: |
N34: | | P34: =P33+1 -> 2023 | T34: =Q44 -> 111 | V34: You have to distribute the remaining counts | AB34: |
N35: | | P35: =P34+1 -> 2024 | S35: =Q42 -> 78 | T35: =Q43 -> 85.381 | V35: proportionately using the disposal rate you selected in the | AB35: |
N36: | | P36: =P35+1 -> 2025 | R36: =Q39 -> 127 | S36: =Q40 -> 61 | T36: =Q41 -> 68 | V36: previous step. | AB36: |
N37: | | AB37: |
N38: | | S38: remaining counts | V38: proportional distribution | AB38: |
N39: | | P39: 2025/24: | Q39: =ROUND((H17-Q8)*(R27-Q27)/(T27-Q27),0) -> 127 | R39: = | S39: ="( "&H17&" - "&Q8&" )" -> ( 1860 - 1604 ) | U39: x | V39: ="( " & R27 & " - " & Q27 & " )" -> ( 0.937 - 0.875 ) | X39: / | Y39: ="( " & T27 & " - " & Q27 & " )" -> ( 1 - 0.875 ) | AB39: |
N40: | | P40: 2025/36: | Q40: =ROUND((H17-Q8)*(S27-R27)/(T27-Q27),0) -> 61 | R40: = | S40: ="( "&H17&" - "&Q8&" )" -> ( 1860 - 1604 ) | U40: x | V40: ="( " & S27 & " - " & R27 & " )" -> ( 0.967 - 0.937 ) | X40: / | Y40: ="( " & T27 & " - " & Q27 & " )" -> ( 1 - 0.875 ) | AB40: |
N41: | | P41: 2025/48: | Q41: =ROUND((H17-Q8)*(T27-S27)/(T27-Q27),0) -> 68 | R41: = | S41: ="( "&H17&" - "&Q8&" )" -> ( 1860 - 1604 ) | U41: x | V41: ="( " & T27 & " - " & S27 & " )" -> ( 1 - 0.967 ) | X41: / | Y41: ="( " & T27 & " - " & Q27 & " )" -> ( 1 - 0.875 ) | AB41: |
N42: | | O42: * | P42: 2024/36: | Q42: =ROUND((H16-R7)*(S27-R27)/(T27-R27),0) -> 78 | R42: = | S42: ="( "&H16&" - "&R7&" )" -> ( 1863 - 1700 ) | U42: x | V42: ="( " & S27 & " - " & R27 & " )" -> ( 0.967 - 0.937 ) | X42: / | Y42: ="( " & T27 & " - " & R27 & " )" -> ( 1 - 0.937 ) | AB42: |
N43: | | O43: * | P43: 2024/48: | Q43: =ROUND((H16-R7)*(T27-S27)/(T27-R27),3) -> 85.381 | R43: = | S43: ="( "&H16&" - "&R7&" )" -> ( 1863 - 1700 ) | U43: x | V43: ="( " & T27 & " - " & S27 & " )" -> ( 1 - 0.967 ) | X43: / | Y43: ="( " & T27 & " - " & R27 & " )" -> ( 1 - 0.937 ) | AB43: |
N44: | | O44: * | P44: 2023/48: | Q44: =ROUND((H15-S6)*(T27-S27)/(T27-S27),0) -> 111 | R44: = | S44: ="( "&H15&" - "&S6&" )" -> ( 1951 - 1840 ) | U44: x | V44: ="( " & T27 & " - " & S27 & " )" -> ( 1 - 0.967 ) | X44: / | Y44: ="( " & T27 & " - " & S27 & " )" -> ( 1 - 0.967 ) | AB44: |
N45: | | O45: * | P45: Note that don't have to project every AY. You only have to project the rows for AYs you're asked to calculate. | AB45: |
N46: | | AB46: |
N47: | | O47: Step 3a | P47: calculate IPS trended to AY 2025, and select an AY 2025 severity for the unpaid periods 24, 36, 48 | AB47: |
N48: | | AB48: |
N49: | | Q49: Incremental Paid Severity (IPS) | AB49: |
N50: | | P50: AY | Q50: 12 | R50: 24 | S50: 36 | T50: 48 | V50: demonstration of severity calc & trending for age 24 | AB50: |
N51: | | P51: =C14 -> 2022 | Q51: =W14/W5*(1+E10)^($P$54-$P51) -> 4.811435048 | R51: =X14/X5*(1+E10)^($P$54-$P51) -> 25.49696333 | S51: =Y14/Y5*(1+E10)^($P$54-$P51) -> 8.79645235 | T51: =Z14/Z5*(1+E10)^($P$54-$P51) -> 0 | V51: =R51 -> 25.49696333 | W51: = | X51: ="( " & X14&" / "&X5&" )" & " x " & "( "&"1"& " + " & E10*100 & "% )" & "^3" -> ( 1050 / 45 ) x ( 1 + 3% )^3 | AB51: |
N52: | | P52: =P51+1 -> 2023 | Q52: =W15/W6*(1+E10)^($P$54-$P52) -> 4.622775965 | R52: =X15/X6*(1+E10)^($P$54-$P52) -> 6.650588172 | S52: =Y15/Y6*(1+E10)^($P$54-$P52) -> 3.956272917 | V52: =R52 -> 6.650588172 | W52: = | X52: ="( " & X15&" / "&X6&" )" & " x " & "( "&"1"& " + " & E10*100 & "% )" & "^2" -> ( 1166 / 186 ) x ( 1 + 3% )^2 | AB52: |
N53: | | P53: =P52+1 -> 2024 | Q53: =W16/W7*(1+E10)^($P$54-$P53) -> 5.139090343 | R53: =X16/X7*(1+E10)^($P$54-$P53) -> 13.35747368 | V53: =R53 -> 13.35747368 | W53: = | X53: ="( " & X16&" / "&X7&" )" & " x " & "( "&"1"& " + " & E10*100 & "% )" & "^1" -> ( 1232 / 95 ) x ( 1 + 3% )^1 | AB53: |
N54: | | P54: 2025 | Q54: =W17/W8*(1+E10)^($P$54-$P54) -> 4.039900249 | R54: =ROUND(AVERAGE(R51:R53),3) -> 15.168 | S54: =ROUND(AVERAGE(S51:S53),3) -> 6.376 | T54: =ROUND(AVERAGE(T51:T53),3) -> 0 | U54: <-- default selected severity = all period average (except age 12) | AB54: |
N55: | | P55: counts | R55: =R36 -> 127 | S55: =S36 -> 61 | T55: =T36 -> 68 | U55: <-- from Step 2b | AB55: |
N56: | | O56: Step 3b | P56: unpaid | R56: =R55*R54 -> 1926.336 | S56: =S55*S54 -> 388.936 | T56: =T55*T54 -> 0 | U56: <-- (selected severity) x counts | AB56: |
N57: | | P57: court ruling adj. | R57: =J8 -> 0 | S57: =J8 -> 0 | T57: =J8 -> 0 | U57: <-- adjust unpaid by this percentage | AB57: |
N58: | | P58: adj. unpaid | R58: =R56*(1+R57) -> 1926.336 | S58: =S56*(1+S57) -> 388.936 | T58: =T56*(1+T57) -> 0 | U58: =SUM(R58:T58) -> 2315.272 | V58: <-- final answer for UNPAID loss | AB58: |
N59: | | U59: =U58+D24 -> 8795.272 | V59: <-- ULTIMATE loss | AB59: |
A60: ---- | B60: ---- | C60: ---- | D60: ---- | E60: ---- | F60: ---- | G60: ---- | H60: ---- | I60: ---- | J60: ---- | K60: ---- | L60: ---- | M60: ---- | N60: ---- | O60: ---- | P60: ---- | Q60: ---- | R60: ---- | S60: ---- | T60: ---- | U60: ---- | V60: ---- | W60: ---- | X60: ---- | Y60: ---- | Z60: ---- | AA60: ---- | AB60: ----

Sheet 2
A1: Reading: | C1: Friedland 12 (Case Outstanding Methods) | N1: | | O1: Step 1 | P1: calculate IPL | R1: (Incremental Paid Loss) | AB1: |
A2: Model: | C2: 2019.Fall #18 | N2: | | AB2: |
A3: Problem Type: | C3: Reserving Methods - COS (Case O/S Method #1) | N3: | | Q3: Incremental Paid Loss ($000s) (IPL) | V3: Sometimes you're given the incremental paid loss. | AB3: |
N4: | | P4: AY | Q4: 12 | R4: 24 | S4: 36 | T4: 48 | V4: If so, then step 1 is not necessary. | AB4: |
A5: Find | C5: Use a Case O/S method to calculate the | G5: ultimate | H5: for AY | I5: 2024 | N5: | | P5: =C10 -> 2022 | Q5: =D10 -> 1608 | R5: =E10-D10 -> 1415 | S5: =F10-E10 -> 892 | T5: =G10-F10 -> 301 | AB5: |
N6: | | P6: =P5+1 -> 2023 | Q6: =D11 -> 2358 | R6: =E11-D11 -> 2031 | S6: =F11-E11 -> 1228 | AB6: |
N7: | | P7: =P6+1 -> 2024 | Q7: =D12 -> 2100 | R7: =E12-D12 -> 1736 | AB7: |
A8: Given | D8: Cumulative Paid Loss ($000s) (CPL) | N8: | | P8: =P7+1 -> 2025 | Q8: =D13 -> 2414 | AB8: |
C9: AY | D9: 12 | E9: 24 | F9: 36 | G9: 48 | N9: | | AB9: |
C10: 2022 | D10: 1608 | E10: 3023 | F10: 3915 | G10: 4216 | N10: | | O10: Step 2a | P10: calculate & make selections for: (current case) / (prior case) | AB10: |
C11: =C10+1 -> 2023 | D11: 2358 | E11: 4389 | F11: 5617 | N11: | | V11: Demonstration for AY 2022 calculations: | AB11: |
C12: =C11+1 -> 2024 | D12: 2100 | E12: 3836 | N12: | | Q12: Current/Prior COS | X12: current | Z12: prior | AB12: |
C13: =C12+1 -> 2025 | D13: 2414 | N13: | | P13: AY | Q13: 24/12 | R13: 36/24 | S13: 48/36 | T13: 60/48 | X13: case O/S | Z13: case O/S | AB13: |
N14: | | P14: =C10 -> 2022 | Q14: =IFERROR(ROUND(E17/D17,3),"") -> 0.537 | R14: =IFERROR(ROUND(F17/E17,3),"") -> 0.504 | S14: =IFERROR(ROUND(G17/F17,3),"") -> 0.405 | U14: 24/12 | V14: =IFERROR(ROUND(X14/Z14,3),"") -> 0.537 | W14: = | X14: =E17 -> 1128 | Y14: / | Z14: =D17 -> 2100 | AB14: |
D15: Case Outstanding ($000s) (COS) | N15: | | P15: =P14+1 -> 2023 | Q15: =ROUND(E18/D18,3) -> 0.579 | R15: =ROUND(F18/E18,3) -> 0.507 | U15: 36/24 | V15: =IFERROR(ROUND(X15/Z15,3),"") -> 0.504 | W15: = | X15: =F17 -> 568 | Y15: / | Z15: =E17 -> 1128 | AB15: |
C16: AY | D16: 12 | E16: 24 | F16: 36 | G16: 48 | N16: | | P16: =P15+1 -> 2024 | Q16: =ROUND(E19/D19,3) -> 0.565 | U16: 48/36 | V16: =IFERROR(ROUND(X16/Z16,3),"") -> 0.405 | W16: = | X16: =G17 -> 230 | Y16: / | Z16: =F17 -> 568 | AB16: |
C17: 2022 | D17: 2100 | E17: 1128 | F17: 568 | G17: 230 | N17: | | P17: =P16+1 -> 2025 | Q17: =IFERROR(ROUND(AVERAGE(Q14:Q16),3),0) -> 0.56 | R17: =IFERROR(ROUND(AVERAGE(R14:R16),3),0) -> 0.506 | S17: =IFERROR(ROUND(AVERAGE(S14:S16),3),0) -> 0.405 | T17: =IFERROR(ROUND(AVERAGE(T14:T16),3),0) -> 0 | U17: <-- default selection = all period average | AB17: |
C18: =C17+1 -> 2023 | D18: 2840 | E18: 1645 | F18: 834 | N18: | | AB18: |
C19: =C18+1 -> 2024 | D19: 2538 | E19: 1433 | N19: | | O19: Step 2b | P19: project case O/S using selections from step 2a | AB19: |
C20: =C19+1 -> 2025 | D20: 3300 | N20: | | AB20: |
N21: | | Q21: projected Case Outstanding (COS) | V21: Demonstration for AY 2025 projections: | AB21: |
C22: 48-ultimate paid loss to prior case O/S factor | H22: 1.1 | N22: | | P22: AY | Q22: 12 | R22: 24 | S22: 36 | T22: 48 | Z22: prior | AB22: |
N23: | | P23: =C10 -> 2022 | T23: =G17 -> 230 | V23: projection | X23: selection | Z23: case O/S | AB23: |
C24: * no development past 60 months | N24: | | P24: =P23+1 -> 2023 | S24: =F18 -> 834 | T24: =S24*S17 -> 337.77 | U24: 24 mths | V24: =ROUND(X24*Z24,0) -> 1848 | W24: = | X24: =Q17 -> 0.56 | Y24: x | Z24: =Q26 -> 3300 | AB24: |
N25: | | P25: =P24+1 -> 2024 | R25: =E19 -> 1433 | S25: =ROUND(R25*R17,0) -> 725 | T25: =ROUND(S25*S17,0) -> 294 | U25: 36 mths | V25: =ROUND(X25*Z25,0) -> 935 | W25: = | X25: =R17 -> 0.506 | Y25: x | Z25: =R26 -> 1848 | AB25: |
N26: | | P26: =P25+1 -> 2025 | Q26: =D20 -> 3300 | R26: =ROUND(Q26*Q17,0) -> 1848 | S26: =ROUND(R26*R17,0) -> 935 | T26: =ROUND(S26*S17,0) -> 379 | U26: 48 mths | V26: =ROUND(X26*Z26,0) -> 379 | W26: = | X26: =S17 -> 0.405 | Y26: x | Z26: =S26 -> 935 | AB26: |
N27: | | AB27: |
N28: | | O28: Step 3a | P28: calculate & make selections for: (current IPL) / (prior case) | AB28: |
N29: | | V29: Demonstration for AY 2022 calculations: | AB29: |
N30: | | Q30: IPL / (prior case) | X30: current | Z30: prior | AB30: |
N31: | | P31: AY | Q31: 24/12 | R31: 36/24 | S31: 48/36 | T31: 60/48 | X31: IPL | Z31: case O/S | AB31: |
N32: | | P32: =C10 -> 2022 | Q32: =IFERROR(R5/D17,"") -> 0.6738095238 | R32: =IFERROR(S5/E17,"") -> 0.7907801418 | S32: =IFERROR(T5/F17,"") -> 0.5299295775 | U32: 24/12 | V32: =IFERROR(ROUND(X32/Z32,3),"") -> 0.674 | W32: = | X32: =R5 -> 1415 | Y32: / | Z32: =D17 -> 2100 | AB32: |
N33: | | P33: =P32+1 -> 2023 | Q33: =R6/D18 -> 0.7151408451 | R33: =S6/E18 -> 0.7465045593 | U33: 36/24 | V33: =IFERROR(ROUND(X33/Z33,3),"") -> 0.791 | W33: = | X33: =S5 -> 892 | Y33: / | Z33: =E17 -> 1128 | AB33: |
N34: | | P34: =P33+1 -> 2024 | Q34: =R7/D19 -> 0.6840031521 | U34: 48/36 | V34: =IFERROR(ROUND(X34/Z34,3),"") -> 0.53 | W34: = | X34: =T5 -> 301 | Y34: / | Z34: =F17 -> 568 | AB34: |
N35: | | P35: =P34+1 -> 2025 | Q35: =IFERROR(ROUND(AVERAGE(Q32:Q34),3),1) -> 0.691 | R35: =IFERROR(ROUND(AVERAGE(R32:R34),3),1) -> 0.769 | S35: =IFERROR(ROUND(AVERAGE(S32:S34),3),1) -> 0.53 | U35: <-- default selection = all period average | AB35: |
N36: | | AB36: |
N37: | | O37: Step 3b | P37: project IPL using selections from step 3a | AB37: |
N38: | | W38: Demonstration for AY 2025 projections: | AB38: |
N39: | | Q39: projected Incremental Paid Loss (IPL) | AA39: prior | AB39: |
N40: | | P40: AY | Q40: 12 | R40: 24 | S40: 36 | T40: 48 | U40: 60 | W40: projection | Y40: selection * | AA40: case O/S | AB40: |
N41: | | P41: =C10 -> 2022 | U41: =H22*T23 -> 253 | V41: 24 mths | W41: =ROUND(Y41*AA41,0) -> 2280 | X41: = | Y41: =Q35 -> 0.691 | Z41: x | AA41: =Q26 -> 3300 | AB41: |
N42: | | P42: =P41+1 -> 2023 | T42: =ROUND(S35*S24,0) -> 442 | U42: =ROUND(H22*T24,0) -> 372 | V42: 36 mths | W42: =ROUND(Y42*AA42,0) -> 1421 | X42: = | Y42: =R35 -> 0.769 | Z42: x | AA42: =R26 -> 1848 | AB42: |
N43: | | P43: =P42+1 -> 2024 | S43: =ROUND(R35*R25,0) -> 1102 | T43: =ROUND(S35*S25,0) -> 384 | U43: =ROUND(H22*T25,0) -> 323 | V43: 48 mths | W43: =ROUND(Y43*AA43,0) -> 496 | X43: = | Y43: =S35 -> 0.53 | Z43: x | AA43: =S26 -> 935 | AB43: |
N44: | | P44: =P43+1 -> 2025 | R44: =ROUND(Q35*Q26,0) -> 2280 | S44: =ROUND(R35*R26,0) -> 1421 | T44: =ROUND(S35*S26,0) -> 496 | U44: =T26*H22 -> 416.9 | V44: 60 mths | W44: =ROUND(Y44*AA44,0) -> 417 | X44: = | Y44: =H22 -> 1.1 | Z44: x | AA44: =T26 -> 379 | AB44: |
N45: | | AB45: |
N46: | | P46: Note: | Q46: The IPL projection always has 1 extra column. In this | W46: * The 60-mth selection was given info. | AB46: |
N47: | | Q47: case 60-months. We use the 48-month case O/S | W47: (It was not selected in step 3a) | AB47: |
N48: | | Q48: to project the IPL out to 60 months. | AB48: |
N49: | | AB49: |
N50: | | O50: Final | P50: calculate ultimate & unpaid amounts: | T50: unpaid | U50: = | V50: sum of rows in step 3b | AB50: |
N51: | | T51: ultimate | U51: = | V51: sum of rows in step 3b + last diagonal of CPL | AB51: |
N52: | | AB52: |
N53: | | P53: AY | Q53: ultimate | R53: unpaid | AB53: |
N54: | | P54: =C10 -> 2022 | Q54: =SUM(Q5:T5)+SUM(Q41:U41) -> 4469 | R54: =SUM(Q41:U41) -> 253 | T54: Pay attention to whether the question asks for ultimate or unpaid. | AB54: |
N55: | | P55: =P54+1 -> 2023 | Q55: =SUM(Q6:T6)+SUM(Q42:U42) -> 6431 | R55: =SUM(Q42:U42) -> 814 | T55: Also, pay attention to which AY is being asked about. | AB55: |
N56: | | P56: =P55+1 -> 2024 | Q56: =SUM(Q7:T7)+SUM(Q43:U43) -> 5645 | R56: =SUM(Q43:U43) -> 1809 | AB56: |
N57: | | P57: =P56+1 -> 2025 | Q57: =SUM(Q8:T8)+SUM(Q44:U44) -> 7027.9 | R57: =SUM(Q44:U44) -> 4613.9 | AB57: |
N58: | | AB58: |
N59: | | P59: The final | Q59: =G5 -> ultimate | R59: for AY | S59: =I5 -> 2024 | T59: is | U59: =VLOOKUP(S59,P54:R57,IF(Q59="ultimate",2,3),FALSE) -> 5645 | V59: <-- final answer | AB59: |
A60: ---- | B60: ---- | C60: ---- | D60: ---- | E60: ---- | F60: ---- | G60: ---- | H60: ---- | I60: ---- | J60: ---- | K60: ---- | L60: ---- | M60: ---- | N60: ---- | O60: ---- | P60: ---- | Q60: ---- | R60: ---- | S60: ---- | T60: ---- | U60: ---- | V60: ---- | W60: ---- | X60: ---- | Y60: ---- | Z60: ---- | AA60: ---- | AB60: ----

Sheet 3
A1: Reading: | C1: Friedland 13 (Berquist-Sherman Methods) | N1: | | O1: Step 1a | P1: calculate CDR as: | R1: CPC / UC | S1: (UC = Ultimate Counts) | AB1: |
A2: Model: | C2: 2016.Spring #20 | N2: | | AB2: |
A3: Problem Type: | C3: Reserving Methods - PBS (Paid Berq-Sherm) | N3: | | Q3: Claims DIsposal Rate (CDR) | V3: We assume the latest diagonal reflects current | AB3: |
N4: | | P4: AY | Q4: 12 | R4: 24 | S4: 36 | T4: 48 | V4: disposal rates. (This is the most recent CY.) | AB4: |
A5: Find | C5: Use the paid Berquist-Sherman method to calculate the | I5: unpaid | J5: for AY | K5: 2025 | N5: | | P5: =C10 -> 2022 | Q5: =IFERROR(ROUND(D10/H10,3),"") -> 0.952 | R5: =IFERROR(ROUND(E10/H10,3),"") -> 0.978 | S5: =IFERROR(ROUND(F10/H10,3),"") -> 0.99 | T5: =IFERROR(ROUND(G10/H10,3),"") -> 1 | V5: We will restate all AYs to be at the level of this | AB5: |
N6: | | P6: =P5+1 -> 2023 | Q6: =ROUND(D11/H11,3) -> 0.864 | R6: =ROUND(E11/H11,3) -> 0.965 | S6: =ROUND(F11/H11,3) -> 0.99 | V6: most recent CY. | AB6: |
N7: | | P7: =P6+1 -> 2024 | Q7: =ROUND(D12/H12,3) -> 0.905 | R7: =ROUND(E12/H12,3) -> 0.958 | AB7: |
A8: Given | D8: Cumulative Paid Counts (CPC) | H8: Ultimate | J8: * May be development past 48 months | N8: | | P8: =P7+1 -> 2025 | Q8: =ROUND(D13/H13,3) -> 0.905 | AB8: |
C9: AY | D9: 12 | E9: 24 | F9: 36 | G9: 48 | H9: Counts | N9: | | P9: last CY | Q9: =Q8 -> 0.905 | R9: =R7 -> 0.958 | S9: =S6 -> 0.99 | T9: =T5 -> 1 | U9: <-- select LATEST DIAGONAL (not all-period-average) | AB9: |
C10: 2022 | D10: 1590 | E10: 1635 | F10: 1655 | G10: 1671 | H10: 1671 | N10: | | AB10: |
C11: =C10+1 -> 2023 | D11: 1606 | E11: 1792 | F11: 1840 | H11: 1857.78852 | N11: | | O11: Step 1b | P11: restate CPC using CDRs from last CY | V11: This "range" table is just a visual aid | AB11: |
C12: =C11+1 -> 2024 | D12: 1605 | E12: 1700 | H12: 1773.945907 | N12: | | AB12: |
C13: =C12+1 -> 2025 | D13: 1604 | H13: 1771.760817 | N13: | | Q13: Restated Cumulative Paid Counts (CPC) | U13: ===> | W13: Range Relative to Original Paid Counts | AB13: |
N14: | | P14: AY | Q14: 12 | R14: 24 | S14: 36 | T14: 48 | V14: AY | W14: 12 | X14: 24 | Y14: 36 | Z14: 48 | AB14: |
D15: Cumulative Paid Loss ($000s) (CPL) | I15: * May be development past 48 months | N15: | | P15: =C20 -> 2025 | Q15: =ROUND(H10*Q9,0) -> 1512 | R15: =ROUND(H10*R9,0) -> 1601 | S15: =ROUND(H10*S9,0) -> 1654 | T15: =ROUND(H10*T9,0) -> 1671 | V15: =C10 -> 2022 | W15: =IF(Q15<D10,"0-"&D9,D9&"-"&E9) -> 0-12 | X15: =IF(R15<E10,D9&"-"&E9,E9&"-"&F9) -> 12-24 | Y15: =IF(S15<F10,E9&"-"&F9,F9&"-"&G9) -> 24-36 | Z15: =IF(T15<G10,F9&"-"&G9,G9&"-60") -> 48-60 | AB15: |
C16: AY | D16: 12 | E16: 24 | F16: 36 | G16: 48 | N16: | | P16: =P15+1 -> 2026 | Q16: =ROUND(H11*Q9,0) -> 1681 | R16: =ROUND(H11*R9,0) -> 1780 | S16: =ROUND(H11*S9,0) -> 1839 | V16: =V15+1 -> 2023 | W16: =IF(Q16<D11,"0-"&D9,D9&"-"&E9) -> 12-24 | X16: =IF(R16<E11,D9&"-"&E9,E9&"-"&F9) -> 12-24 | Y16: =IF(S16<F11,E9&"-"&F9,F9&"-"&G9) -> 24-36 | AB16: |
C17: 2022 | D17: 7001 | E17: 8051 | F17: 8212 | G17: 8212 | N17: | | P17: =P16+1 -> 2027 | Q17: =ROUND(H12*Q9,0) -> 1605 | R17: =ROUND(H12*R9,0) -> 1699 | V17: =V16+1 -> 2024 | W17: =IF(Q17<D12,"0-"&D9,D9&"-"&E9) -> 12-24 | X17: =IF(R17<E12,D9&"-"&E9,E9&"-"&F9) -> 12-24 | AB17: |
C18: =C17+1 -> 2023 | D18: 6998 | E18: 8164 | F18: 8343 | N18: | | P18: =P17+1 -> 2028 | Q18: =ROUND(H13*Q9,0) -> 1603 | V18: =V17+1 -> 2025 | W18: =IF(Q18<D13,"0-"&D9,D9&"-"&E9) -> 0-12 | AB18: |
C19: =C18+1 -> 2024 | D19: 8008 | E19: 9240 | N19: | | AB19: |
C20: =C19+1 -> 2025 | D20: 6480 | N20: | | P20: Ex: | Q20: =Q15 -> 1512 | R20: = | S20: =Q9&" x "&H10 -> 0.905 x 1671 | V20: The range table is helpful in visualizing which data points | AB20: |
N21: | | P21: Ex: | Q21: =R16 -> 1780 | R21: = | S21: =R9&" x "&H11 -> 0.958 x 1857.78851963746 | V21: and/or which regression parameters to use in Step 2. | AB21: |
D22: parameters for 2-point exponential fit: y = aebx | N22: | | AB22: | | AD22: parameters for 2-point exponential fit: y = aebx
D23: 0 - 12 | F23: 12 - 24 | H23: 24 - 36 | J23: 36 - 48 | L23: 48 - 60 | N23: | | O23: Step 2 | P23: restate CPL using linear interpolation | U23: or… | V23: restate CPL using exponential regression interpolation | AB23: | | AD23: 0 - 12 | AF23: 12 - 24 | AH23: 24 - 36 | AJ23: 36 - 48 | AL23: 48 - 60
C24: AY | D24: a | E24: b | F24: a | G24: b | H24: a | I24: b | J24: a | K24: b | L24: a | M24: b | N24: | | AB24: | | AC24: AY | AD24: 1 + b | AE24: a | AF24: 1 + b | AG24: a | AH24: 1 + b | AI24: a | AJ24: 1 + b | AK24: a | AL24: 1 + b | AM24: a
C25: 2022 | D25: use 12 - 24 values | F25: =ROUND(AG25,0) -> 50 | G25: =ROUND(AF25-1,5) -> 0.00311 | H25: =ROUND(AI25,0) -> 1595 | I25: =ROUND(AH25-1,5) -> 0.00099 | J25: =ROUND(AK25,0) -> 8212 | K25: =ROUND(AJ25-1,5) -> 0 | L25: not needed | N25: | | Q25: Restated Cumulative Paid Loss (CPL) | W25: Restated Cumulative Paid Loss (CPL) | AB25: | | AC25: 2022 | AD25: use 12 - 24 values | AF25: =LOGEST(D17:E17,D10:E10,1,1) -> 1.003110234 | AG25: 50.20985263 | AH25: =LOGEST(E17:F17,E10:F10,1,1) -> 1.0009905 | AI25: 1595.409789 | AJ25: =LOGEST(F17:G17,F10:G10,1,1) -> 1 | AK25: 8212 | AL25: not needed
C26: =C25+1 -> 2023 | D26: use 12 - 24 values | F26: =ROUND(AG26,0) -> 1850 | G26: =ROUND(AF26-1,5) -> 0.00083 | H26: =ROUND(AI26,0) -> 3633 | I26: =ROUND(AH26-1,5) -> 0.00045 | N26: | | P26: AY | Q26: 12 | R26: 24 | S26: 36 | T26: 48 | V26: AY | W26: 12 | X26: 24 | Y26: 36 | Z26: 48 | AB26: | | AC26: =AC25+1 -> 2023 | AD26: use 12 - 24 values | AF26: =LOGEST(D18:E18,D11:E11,1,1) -> 1.000828891 | AG26: 1849.614004 | AH26: =LOGEST(E18:F18,E11:F11,1,1) -> 1.000451948 | AI26: 3632.880295
C27: =C26+1 -> 2024 | D27: use 12 - 24 values | F27: =ROUND(AG27,0) -> 714 | G27: =ROUND(AF27-1,5) -> 0.00151 | N27: | | P27: 2022 | Q27: =ROUND(IF(RIGHT(W15,2)=RIGHT(W14,2),(Q15-0)/(D10-0)*(D17-0)+0,(Q15-D10)/(E10-D10)*(E17-D17-0)+D17),0) -> 6658 | R27: =ROUND(IF(RIGHT(X15,2)=RIGHT(X14,2),(R15-D10)/(E10-D10)*(E17-D17)+D17,(R15-E10)/(F10-E10)*(F17-E17)+E17),0) -> 7258 | S27: =ROUND(IF(RIGHT(Y15,2)=RIGHT(Y14,2),(S15-E10)/(F10-E10)*(F17-E17)+E17,(S15-F10)/(G10-F10)*(G17-F17)+F17),0) -> 8204 | T27: =ROUND(G17,0) -> 8212 | V27: 2022 | W27: =ROUND(IF(RIGHT(W15,2)=RIGHT(W14,2),F25*EXP(G25*Q15),F25*EXP(G25*Q15)),0) -> 5510 | X27: =ROUND(IF(RIGHT(X15,2)=RIGHT(X14,2),F25*EXP(G25*R15),H25*EXP(I25*R15)),0) -> 7267 | Y27: =ROUND(IF(RIGHT(Y15,2)=RIGHT(Y14,2),H25*EXP(I25*S15),J25*EXP(K25*S15)),0) -> 8202 | Z27: =ROUND(G17,0) -> 8212 | AB27: | | AC27: =AC26+1 -> 2024 | AD27: use 12 - 24 values | AF27: =LOGEST(D19:E19,D12:E12,1,1) -> 1.00150746 | AG27: 713.7588968
C28: =C27+1 -> 2025 | D28: use 12 - 24 values | N28: | | P28: =P27+1 -> 2023 | Q28: =ROUND(IF(RIGHT(W16,2)=RIGHT(W14,2),(Q16-0)/(D11-0)*(D18-0)+0,(Q16-D11)/(E11-D11)*(E18-D18-0)+D18),0) -> 7468 | R28: =ROUND(IF(RIGHT(X16,2)=RIGHT(X14,2),(R16-D11)/(E11-D11)*(E18-D18)+D18,(R16-E11)/(F11-E11)*(F18-E18)+E18),0) -> 8089 | S28: =ROUND(F18,0) -> 8343 | V28: =V27+1 -> 2023 | W28: =ROUND(IF(RIGHT(W16,2)=RIGHT(W14,2),F26*EXP(G26*Q16),F26*EXP(G26*Q16)),0) -> 7466 | X28: =ROUND(IF(RIGHT(X16,2)=RIGHT(X14,2),F26*EXP(G26*R16),H26*EXP(I26*R16)),0) -> 8106 | Y28: =ROUND(F18,0) -> 8343 | AB28: | | AC28: =AC27+1 -> 2025 | AD28: use 12 - 24 values
N29: | | P29: =P28+1 -> 2024 | Q29: =ROUND(IF(RIGHT(W17,2)=RIGHT(W14,2),(Q17-0)/(D12-0)*(D19-0)+0,(Q17-D12)/(E12-D12)*(E19-D19-0)+D19),0) -> 8008 | R29: =ROUND(E19,0) -> 9240 | V29: =V28+1 -> 2024 | W29: =ROUND(IF(RIGHT(W17,2)=RIGHT(W14,2),F27*EXP(G27*Q17),F27*EXP(G27*Q17)),0) -> 8058 | X29: =ROUND(E19,0) -> 9240 | AB29: |
N30: | | P30: =P29+1 -> 2025 | Q30: =ROUND(D20,0) -> 6480 | V30: =V29+1 -> 2025 | W30: =ROUND(D20,0) -> 6480 | AB30: |
N31: | | O31: Exs: | AB31: |
N32: | | P32: =Q27 -> 6658 | Q32: =IF(RIGHT(W15,2)=RIGHT(W14,2),"= ("&Q15&"-0)/("&D10&"-0)x("&D17&"-0)+0","= ("&Q15&"-"&D10&")/("&E10&"-"&D10&")x("&E17&"-"&D17&")+"&D17) -> = (1512-0)/(1590-0)x(7001-0)+0 | W32: =W27 -> 5510 | X32: =IF(RIGHT(W15,2)=RIGHT(W14,2),"= "&F25&" x EXP("&G25&" x "&Q15&")","= "&F25&" x EXP("&G25&" x "&Q15&")") -> = 50 x EXP(0.00311 x 1512) | AB32: |
N33: | | P33: =R28 -> 8089 | Q33: =IF(RIGHT(X16,2)=RIGHT(X14,2),"= ("&R16&"-"&D11&")/("&E11&"-"&D11&")x("&E18&"-"&D18&")+"&D18,"= ("&R16&"-"&E11&")/("&F11&"-"&E11&")x("&F18&"-"&E18&")+"&E18) -> = (1780-1606)/(1792-1606)x(8164-6998)+6998 | W33: =X28 -> 8106 | X33: =IF(RIGHT(X16,2)=RIGHT(X14,2),"= "&F26&" x "& "EXP("&G26&" x "&R16&")","= "&H26&" x "&"EXP("&I26&" x "&R16&")") -> = 1850 x EXP(0.00083 x 1780) | AB33: |
N34: | | P34: =S27 -> 8204 | Q34: =IF(RIGHT(Y15,2)=RIGHT(Y14,2),"= ("&S15&"-"&E10&")/("&F10&"-"&E10&")x("&F17&"-"&E17&")+"&E17,"= ("&S15&"-"&F10&")/("&G10&"-"&F10&")x("&G17&"-"&F17&")+"&F17) -> = (1654-1635)/(1655-1635)x(8212-8051)+8051 | W34: =Y27 -> 8202 | X34: =IF(RIGHT(Y15,2)=RIGHT(Y14,2),"= "&H25&" x EXP("&I25&" x "&S15&")","= "&J25&" x EXP("&K25&" x "&S15&")") -> = 1595 x EXP(0.00099 x 1654) | AB34: |
N35: | | AB35: |
N36: | | O36: Step 3a | P36: apply development method to restated CPL | V36: apply development method to restated CPL | AB36: |
N37: | | AB37: |
N38: | | O38: LDFs | P38: AY | Q38: =D9&"-"&E9 -> 12-24 | R38: =E9&"-"&F9 -> 24-36 | S38: =F9&"-"&G9 -> 36-48 | T38: 48-ult | U38: or… | V38: AY | W38: =Q38 -> 12-24 | X38: =R38 -> 24-36 | Y38: =S38 -> 36-48 | Z38: 48-ult | AB38: |
N39: | | P39: =C10 -> 2022 | Q39: =IFERROR(ROUND(R27/Q27,3),"") -> 1.09 | R39: =IFERROR(ROUND(S27/R27,3),"") -> 1.13 | S39: =IFERROR(ROUND(T27/S27,3),"") -> 1.001 | V39: =P39 -> 2022 | W39: =IFERROR(ROUND(X27/W27,3),"") -> 1.319 | X39: =IFERROR(ROUND(Y27/X27,3),"") -> 1.129 | Y39: =IFERROR(ROUND(Z27/Y27,3),"") -> 1.001 | AB39: |
N40: | | P40: =P39+1 -> 2023 | Q40: =IFERROR(ROUND(R28/Q28,3),"") -> 1.083 | R40: =IFERROR(ROUND(S28/R28,3),"") -> 1.031 | V40: =V39+1 -> 2023 | W40: =IFERROR(ROUND(X28/W28,3),"") -> 1.086 | X40: =IFERROR(ROUND(Y28/X28,3),"") -> 1.029 | AB40: |
N41: | | P41: =P40+1 -> 2024 | Q41: =IFERROR(ROUND(R29/Q29,3),"") -> 1.154 | S41: =IFERROR(ROUND(T29/S29,3),"") ->  | T41: tail | V41: =V40+1 -> 2024 | W41: =IFERROR(ROUND(X29/W29,3),"") -> 1.147 | Y41: =IFERROR(ROUND(Z29/Y29,3),"") ->  | Z41: tail | AB41: |
N42: | | P42: =P41+1 -> 2025 | R42: =IFERROR(ROUND(S30/R30,3),"") ->  | S42: =IFERROR(ROUND(T30/S30,3),"") ->  | T42: factor: | V42: =V41+1 -> 2025 | X42: =IFERROR(ROUND(Y30/X30,3),"") ->  | Y42: =IFERROR(ROUND(Z30/Y30,3),"") ->  | Z42: factor: | AB42: |
N43: | | P43: selected | Q43: =AVERAGE(Q39:Q41) -> 1.109 | R43: =AVERAGE(R39:R41) -> 1.0805 | S43: =AVERAGE(S39:S41) -> 1.001 | T43: =SQRT(S43) -> 1.000499875 | V43: selected | W43: =AVERAGE(W39:W41) -> 1.184 | X43: =AVERAGE(X39:X41) -> 1.079 | Y43: =AVERAGE(Y39:Y41) -> 1.001 | Z43: =SQRT(Y43) -> 1.000499875 | AB43: |
N44: | | AB44: |
N45: | | O45: CDFs | Q45: =Q38 -> 12-24 | R45: =R38 -> 24-36 | S45: =S38 -> 36-48 | T45: =T38 -> 48-ult | W45: =W38 -> 12-24 | X45: =X38 -> 24-36 | Y45: =Y38 -> 36-48 | Z45: =Z38 -> 48-ult | AB45: |
N46: | | P46: age -> ult | Q46: =R46*Q43 -> 1.200072361 | R46: =S46*R43 -> 1.082121155 | S46: =T46*S43 -> 1.001500375 | T46: =T43 -> 1.000499875 | V46: age -> ult | W46: =X46*W43 -> 1.279452783 | X46: =Y46*X43 -> 1.080618905 | Y46: =Z46*Y43 -> 1.001500375 | Z46: =Z43 -> 1.000499875 | AB46: |
N47: | | AB47: |
N48: | | O48: Ults. | Q48: ="'"&RIGHT(C13,2)&"@"&D9 -> '25@12 | R48: ="'"&RIGHT(C12,2)&"@"&E9 -> '24@24 | S48: ="'"&RIGHT(C11,2)&"@"&F9 -> '23@36 | T48: ="'"&RIGHT(C10,2)&"@"&G9 -> '22@48 | W48: =Q48 -> '25@12 | X48: =R48 -> '24@24 | Y48: =S48 -> '23@36 | Z48: =T48 -> '22@48 | AB48: |
N49: | | P49: diagonal | Q49: =Q30 -> 6480 | R49: =R29 -> 9240 | S49: =S28 -> 8343 | T49: =T27 -> 8212 | V49: diagonal | W49: =W30 -> 6480 | X49: =X29 -> 9240 | Y49: =Y28 -> 8343 | Z49: =Z27 -> 8212 | AB49: |
N50: | | P50: ultimate | Q50: =Q49*Q46 -> 7776.468899 | R50: =R49*R46 -> 9998.799473 | S50: =S49*S46 -> 8355.517628 | T50: =T49*T46 -> 8216.104974 | V50: ultimate | W50: =W49*W46 -> 8290.854034 | X50: =X49*X46 -> 9984.918678 | Y50: =Y49*Y46 -> 8355.517628 | Z50: =Z49*Z46 -> 8216.104974 | AB50: |
N51: | | AB51: |
N52: | | O52: Step 3b | P52: =I5 -> unpaid | Q52: for AY | R52: 2025 | S52: = | T52: =ROUND(INDEX(Q50:T50,1,2026-R52)-IF(P52="ultimate",0,INDEX(D17:G20,R52-2021,2026-R52)),0) -> 1296 | U52: <-- estimate based on LINEAR INTERPOLATION | AB52: |
N53: | | P53: =P52 -> unpaid | Q53: for AY | R53: 2025 | S53: = | T53: =ROUND(INDEX(W50:Z50,1,2026-R53)-IF(P52="ultimate",0,INDEX(D17:G20,R53-2021,2026-R53)),0) -> 1811 | U53: <-- estimate based on EXPONENTIAL REGRESSION INTERPOLATION | AB53: |
N54: | | AB54: |
N55: | | O55: Step 3c | P55: The estimate of ultimate using exponential regression differs from the estimate using liner interpolation by: | AA55: =(T53-T52)/T52 -> 0.3973765432 | AB55: |
N56: | | P56: (Step 3c was just for fun to see if there is any real difference between linear and exponential interpolation.) | AB56: |
N57: | | AB57: |
N58: | | AB58: |
N59: | | AB59: |
A60: ---- | B60: ---- | C60: ---- | D60: ---- | E60: ---- | F60: ---- | G60: ---- | H60: ---- | I60: ---- | J60: ---- | K60: ---- | L60: ---- | M60: ---- | N60: ---- | O60: ---- | P60: ---- | Q60: ---- | R60: ---- | S60: ---- | T60: ---- | U60: ---- | V60: ---- | W60: ---- | X60: ---- | Y60: ---- | Z60: ---- | AA60: ---- | AB60: ----

Sheet 4
A1: Reading: | C1: Friedland 15 (Evaluating Methods) | N1: | | AB1: |
A2: Model: | C2: Emergence Patterns | N2: | | O2: Step 1 | P2: determine the 12-month period containing the period you're given | AB2: |
A3: Problem Type: | C3: Calculate emergence in a future period | N3: | | AB3: |
N4: | | P4: period | Q4: =J5 -> 15 | R4: to | S4: =L5 -> 21 | T4: is contained in period | W4: =F10 -> 12 | X4: to | Y4: =W4+12 -> 24 | AB4: |
A5: Find | C5: Calculate the emergence of | F5: paid | G5: claims | H5: in the period | J5: 15 | K5: to | L5: 21 | N5: | | AB5: |
N6: | | O6: Step 2 | P6: calculate the quantites required in the emergence formula (for step 3) | AB6: |
N7: | | AB7: |
A8: Given | C8: Here is the current information for a particular AY: | N8: | | P8: ultimate | R8: = | S8: ="paid @"&F10 -> paid @12 | T8: x | U8: =W4& "-ultimate CDF" -> 12-ultimate CDF | AB8: |
N9: | | R9: = | S9: =H10 -> 5020 | T9: x | U9: =VLOOKUP(F10,C12:F17,4,FALSE) -> 2.86 | AB9: |
C10: paid | D10: claims | E10: at | F10: 12 | G10: months | H10: 5020 | N10: | | R10: = | S10: =ROUND(S9*U9,0) -> 14357 | AB10: |
N11: | | AB11: |
C12: 12 | D12: - ultimate | E12: CDF | F12: 2.86 | N12: | | P12: ="unpaid @ "&F10 -> unpaid @ 12 | R12: = | S12: ultimate | T12: - | U12: ="paid @"&F10 -> paid @12 | AB12: |
C13: 24 | D13: - ultimate | E13: CDF | F13: 1.47 | N13: | | R13: = | S13: =S10 -> 14357 | T13: - | U13: =H10 -> 5020 | AB13: |
C14: 36 | D14: - ultimate | E14: CDF | F14: 1.11 | N14: | | R14: = | S14: =S13-U13 -> 9337 | AB14: |
C15: 48 | D15: - ultimate | E15: CDF | F15: 1.06 | N15: | | AB15: |
C16: 60 | D16: - ultimate | E16: CDF | F16: 1.03 | N16: | | P16: ="%paid @ "&F10 -> %paid @ 12 | R16: = | S16: 1 | T16: / | U16: =W4& "-ultimate CDF" -> 12-ultimate CDF | AB16: |
C17: 72 | D17: - ultimate | E17: CDF | F17: 1.02 | N17: | | R17: = | S17: 1 | T17: / | U17: =U9 -> 2.86 | AB17: |
N18: | | R18: = | S18: =S17/U17 -> 0.3496503497 | AB18: |
N19: | | AB19: |
N20: | | P20: ="%paid @ "&Y4 -> %paid @ 24 | R20: = | S20: 1 | T20: / | U20: =Y4& "-ultimate CDF" -> 24-ultimate CDF | AB20: |
N21: | | R21: = | S21: 1 | T21: / | U21: =VLOOKUP(Y4,C12:F17,4,FALSE) -> 1.47 | AB21: |
N22: | | R22: = | S22: =S21/U21 -> 0.6802721088 | AB22: |
N23: | | AB23: |
N24: | | P24: ="%unpaid @ "&F10 -> %unpaid @ 12 | R24: = | S24: 1 | T24: - | U24: ="%paid @ "&F10 -> %paid @ 12 | AB24: |
N25: | | R25: = | S25: 1 | T25: - | U25: =S18 -> 0.3496503497 | AB25: |
N26: | | R26: = | S26: =S25-U25 -> 0.6503496503 | AB26: |
N27: | | AB27: |
N28: | | O28: Step 3 | P28: calculate the emergence in the 12-month period using the results from step 2 | AB28: |
N29: | | AB29: |
N30: | | P30: 12-mth emergence | R30: = | S30: =P12&" x ( "&P20&" - "&P16&" ) / ("&P24&" )" -> unpaid @ 12 x ( %paid @ 24 - %paid @ 12 ) / (%unpaid @ 12 ) | AB30: |
N31: | | R31: = | S31: =S14 -> 9337 | T31: x ( | U31: =S22 -> 0.6802721088 | V31: - | W31: =S18 -> 0.3496503497 | X31: ) / | Y31: =S26 -> 0.6503496503 | AB31: |
N32: | | R32: = | S32: =S31*(U31-W31)/Y31 -> 4746.701046 | AB32: |
N33: | | AB33: |
N34: | | O34: Step 4 | P34: if the given period was NOT a 12-month interval then you must interpolate to get the final answer | AB34: |
N35: | | AB35: |
N36: | | P36: given period =========> | S36: =Q4 -> 15 | T36: to | U36: =S4 -> 21 | V36: which is | W36: =U36-S36 -> 6 | X36: months | AB36: |
N37: | | AB37: |
N38: | | P38: =W36&"-mth emergence" -> 6-mth emergence | R38: = | S38: =S32 -> 4746.701046 | T38: x | U38: =W36 -> 6 | V38: / | W38: 12 | AB38: |
N39: | | R39: = | S39: =S38*U38/W38 -> 2373.350523 | T39: <== final answer | AB39: |
N40: | | AB40: |
N41: | | AB41: |
N42: | | AB42: |
N43: | | AB43: |
N44: | | AB44: |
N45: | | AB45: |
N46: | | AB46: |
N47: | | AB47: |
N48: | | AB48: |
N49: | | AB49: |
N50: | | AB50: |
N51: | | AB51: |
N52: | | AB52: |
N53: | | AB53: |
N54: | | AB54: |
N55: | | AB55: |
N56: | | AB56: |
N57: | | AB57: |
N58: | | AB58: |
N59: | | AB59: |
A60: ---- | B60: ---- | C60: ---- | D60: ---- | E60: ---- | F60: ---- | G60: ---- | H60: ---- | I60: ---- | J60: ---- | K60: ---- | L60: ---- | M60: ---- | N60: ---- | O60: ---- | P60: ---- | Q60: ---- | R60: ---- | S60: ---- | T60: ---- | U60: ---- | V60: ---- | W60: ---- | X60: ---- | Y60: ---- | Z60: ---- | AA60: ---- | AB60: ----
